Cogmind - Beta 16 @@@ ROGUE MODE // 2026.01.05 @ 19:10:26 Player: Qvest Result: Self-destructed Performance ------------- Evolutions (3) 1500 Regions Visited (4) 800 Robots Destroyed (27) 135 Value Destroyed (860) 860 Prototype IDs (3) 60 Alien Tech Used (0) 0 Bonus (-113) -113 TOTAL SCORE: 3242 Bonus ------- Friendly Fire -113 Cogmind --------- Core Integrity 618/700 Matter 280/300 Energy 146/150 System Corruption 3% Temperature Cool (0) Movement Hovering (120) Ox1 Location -7/Factory Parts ------- > --- POWER (1) -------- Micro Nuclear Core > --- PROPULSION (4) --- Gravmag System > --- UTILITY (6) ------ Disposable Heat Sink Small Storage Unit Improved Terrain Scan Processor Advanced Targeting Computer Improved Light Armor Plating Hacking Suite > --- WEAPON (2) ------- Remote Datajack > --- INVENTORY (8) ---- Light Ion Engine Insulated Plating Field Laser Cooled Pulse Rifle Improved Spread Laser Grenade Launcher Hammer Peak State ------------ > --- POWER ------------ Micro Nuclear Core > --- PROPULSION ------- Wheel Wheel Subdweller Monowheel Gravmag System > --- UTILITY ---------- Disposable Heat Sink Huge Storage Unit Improved Terrain Scan Processor Improved Light Armor Plating Medium Reactive Plating Improved Shield Generator > --- WEAPON ----------- Cooled Pulse Rifle Improved Spread Laser > --- INVENTORY -------- Ion Engine Light Ion Engine Light Nuclear Core Micro Nuclear Core Light Treads Light Treads Medium Treads Gravmag System Improved Heat Sink Medium Storage Unit Improved Terrain Scanner Advanced Targeting Computer Medium Reactive Plating Medium Reactive Plating Hacking Suite Improved Field Recycling Unit EM Pulse Gun Shock Rifle Improved EM Pulse Cannon Grenade Launcher Heavy Rocket Launcher Heavy Rocket Launcher Remote Datajack Hammer [Rating: 45] Favorites ----------- Power Ion Engine Engine Ion Engine Power Core Micro Nuclear Core Propulsion Subdweller Monowheel Treads Light Treads Wheel Subdweller Monowheel Hover Unit Gravmag System Utility Huge Storage Unit Device Disposable Heat Sink Storage Huge Storage Unit Processor Improved Terrain Scan Processor Hackware Hacking Suite Protection Medium Reactive Plating Weapon Assault Rifle Energy Gun Improved Spread Laser Ballistic Gun Assault Rifle Special Weapon Remote Datajack Build | -11 -10 -10 -9 -7 ------- Run | Yrd Mat Sub Rec Fac Slots Evolved 6 | . . . . 6 Power . | . . . . . Propulsion 2 | . . . . 2 Utility 4 | . . . . 4 Weapon . | . . . . . Parts Attached 33 | 8 . 2 1 22 Power 2 | 1 . . . 1 Engine 1 | 1 . . . . Core 1 | . . . . 1 Reactor . | . . . . . Propulsion 11 | 2 . 2 . 7 Treads 3 | . . . . 3 Leg . | . . . . . Wheel 6 | 2 . 2 . 2 Hover 2 | . . . . 2 Flight . | . . . . . Utility 13 | 3 . . 1 9 Device 4 | 2 . . . 2 Storage 3 | 1 . . 1 1 Processor 2 | . . . . 2 Hackware 1 | . . . . 1 Protection 3 | . . . . 3 Artifact . | . . . . . Weapon 7 | 2 . . . 5 Energy Gun 5 | 1 . . . 4 Energy Cannon . | . . . . . Ballistic Gun 1 | 1 . . . . Ballistic Cannon . | . . . . . Launcher . | . . . . . Special Weapon 1 | . . . . 1 Impact Weapon . | . . . . . Slashing Weapon . | . . . . . Piercing Weapon . | . . . . . Special Melee Weapon . | . . . . . Unidentified Prototypes 3 | . . . . 3 Parts Lost 3 | . . . . 3 Power . | . . . . . Propulsion 2 | . . . . 2 Utility 1 | . . . . 1 Weapon . | . . . . . Highest Loss Streak 1 | . . . . 1 To Critical Strikes . | . . . . . Average Backups 13 | 3 8 8 8 16 Power 2 | . 2 1 1 2 Propulsion 3 | 2 4 3 3 3 Utility 3 | . 1 1 2 4 Weapon 4 | . 1 1 2 6 Tool/Special . | . . . . . Unused Backups 21 | . . 4 . 17 Power 4 | . . 1 . 3 Propulsion 3 | . . 2 . 1 Utility 6 | . . . . 6 Weapon 8 | . . 1 . 7 Tool/Special . | . . . . . Average Slot Usage (%) 95 | . 100 100 100 92 Engine 7 | . 14 14 14 3 Core 2 | . . . . 3 Treads 3 | . . . . 5 Wheel 22 | . 28 28 28 20 Device 18 | . 14 14 14 20 Storage 9 | . 14 14 14 6 Processor 3 | . . . . 5 Protection 5 | . . . . 8 Energy Gun 10 | . 14 14 14 8 Ballistic Gun 8 | . 14 14 14 5 Peak Build Rating 45 | 9 8 10 10 45 Average Rating 24 | 5 8 9 10 32 On Entrance 7 | . 8 8 10 10 Avg Prop Armor Cover (%) 7 | . . . . 7 Naked Turns . | . . . . . Heaviest Build 122 | 15 15 15 90 122 Greatest Support 50 | 26 26 40 40 50 Greatest Overweight (x) 6 | 1 . . 2 6 Average Overweight (x) 1 | . . . 1 2 Largest Inventory Capacity 25 | 8 8 8 25 25 Average Capacity 19 | 7 8 8 23 23 Most Carried 25 | 8 8 8 8 25 Average Carried 13 | 4 8 7 8 16 Final Capacity 25 | 8 8 8 25 8 Final Carried 8 | 8 8 8 8 7 Class Distribution -------------------- 57% | Scavenger-Mutant 42% | Mutant Dominant Class ---------------- Mutant | -10/Materials Mutant | -10/Subcaves Mutant | -9/Recycling Scavenger-Mutant | -7/Factory Resources | -11 -10 -10 -9 -7 ----------- Run | Yrd Mat Sub Rec Fac Matter Collected 762 | 219 36 90 10 407 Remotely . | . . . . . Salvage Created 1183 | 15 . 113 . 1055 Parts 61 | 3 . 4 . 54 Haulers Intercepted . | . . . . . Recyclers Shooed 8 | . 1 . . 7 Parts Field Recycled . | . . . . . Retrieved Matter . | . . . . . Parts Self-Destructed 9 | . . 9 . . Prevented . | . . . . . Parts Restored . | . . . . . Kills | -11 -10 -10 -9 -7 ------- Run | Yrd Mat Sub Rec Fac Combat Hostiles Destroyed 17 | . . 1 . 16 Guns 17 | . . 1 . 16 Classes Destroyed 10 | 1 . 3 . 6 Tunneler 2 | 1 . . . 1 Recycler 6 | . . . . 6 Turret 1 | . . 1 . . Swarmer 3 | . . . . 3 Grunt 8 | . . . . 8 Sentry 2 | . . . . 2 Hunter 1 | . . . . 1 Programmer 2 | . . . . 2 Subdweller 1 | . . 1 . . Federalist 1 | . . 1 . . Best Kill Streak 5 | 1 . 1 . 5 Combat Bots Only 4 | . . 1 . 4 Max Kills in Single Turn 2 | 1 . 1 . 2 Gunslinging 1 | . . . . 1 Exploded . | . . . . . Melee . | . . . . . Uniques/NPCs Destroyed . | . . . . . Combat | -11 -10 -10 -9 -7 -------- Run | Yrd Mat Sub Rec Fac Hostile Shots Fired 127 | . . 13 . 114 Missed 46 | . . 6 . 40 Hits 81 | . . 7 . 74 Projectile 81 | . . 7 . 74 Critical Strikes 1 | . . . . 1 Damage Taken 737 | . . 33 . 704 Core 90 | . . 8 . 82 Absorbed by Shields 233 | . . . . 233 Ignored by Resistances 89 | . . . . 89 Core Remaining (%) 98 | 100 . . 96 . Volleys Fired 73 | 2 3 10 . 58 Largest 2 | 2 2 2 . 2 Hottest 135 | 60 60 60 . 135 Shots Fired 147 | 4 6 20 . 117 Gun 147 | 4 6 20 . 117 Cannon . | . . . . . Launcher . | . . . . . Special . | . . . . . Kinetic 59 | 2 3 10 . 44 Thermal 73 | . . . . 73 Explosive . | . . . . . Electromagnetic 15 | 2 3 10 . . Robot Hit Streak 9 | 2 1 6 . 9 Robot Miss Streak 8 | 2 1 5 . 8 Penetration Max . | . . . . . Secondary Targets 2 | . . . . 2 Max Gunslinging Chain 1 | . . . . 1 Shots Hit Robots 101 | 2 3 9 . 87 Core Hits 96 | 1 1 4 . 90 Critical Kills . | . . . . . Critical Parts Destroyed . | . . . . . Critical Strikes . | . . . . . Melee Attacks . | . . . . . Impact . | . . . . . Slashing . | . . . . . Piercing . | . . . . . Sneak Attacks . | . . . . . Combat Hostiles . | . . . . . Follow-up Attacks . | . . . . . Damage Inflicted 1874 | 24 32 119 . 1699 Guns 1815 | 24 32 119 . 1640 Cannons . | . . . . . Explosions . | . . . . . Melee . | . . . . . Ramming 59 | . . . . 59 Kinetic 422 | 12 32 74 . 304 Thermal 1336 | . . . . 1336 Explosive . | . . . . . Electromagnetic 57 | 12 . 45 . . Impact . | . . . . . Slashing . | . . . . . Piercing . | . . . . . Highest Corruption 3 | . . . . 3 Average Corruption 2 | . . . . 2 Corruption Purged . | . . . . . Corruption Blocked . | . . . . . Effects 10 | . . . . 10 Message Errors 2 | . . . . 2 Matter Fused 4 | . . . . 4 Data Loss (minor) 1 | . . . . 1 Misfires 2 | . . . . 2 Alerts 1 | . . . . 1 Overload Shots 2 | . . . . 2 Effects 1 | . . . . 1 Heat Surge 1 | . . . . 1 Overflow Damage 8 | . . . . 8 Projectiles . | . . . . . Explosions . | . . . . . Melee 8 | . . . . 8 Knockbacks . | . . . . . Impact . | . . . . . Kinetic . | . . . . . Secondary . | . . . . . Self-Inflicted Damage 29 | . . . . 29 Shots . | . . . . . Rammed 3 | . . . . 3 Targets Rammed 3 | . . . . 3 Kicked . | . . . . . Crushed . | . . . . . Highest Temperature 198 | . . . . 198 Average Temperature 65 | . . . . 65 Received Heat Transfer 177 | . . 18 . 159 Siege Activations . | . . . . . Martial Activations . | . . . . . Shielding Activations . | . . . . . Robots Disrupted . | . . . . . Combat Hostiles . | . . . . . Robots Corrupted 1 | . . . . 1 Combat Hostiles . | . . . . . Parts Fried 2 | . . . . 2 Impact Corruptions 1 | . . . . 1 Robots Melted . | . . . . . Combat Hostiles . | . . . . . Parts Melted . | . . . . . Heat Transferred 1330 | . . . . 1330 Parts Sabotaged . | . . . . . Parts Stolen . | . . . . . Parts Stripped . | . . . . . Power Chain Reactions . | . . . . . Alert | -11 -10 -10 -9 -7 ------- Run | Yrd Mat Sub Rec Fac Maximum Alert Level . | . . . . . Low Security (%) 100 | 100 100 . 100 100 Level 1 . | . . . . . Level 2 . | . . . . . Level 3 . | . . . . . Level 4 . | . . . . . Level 5 . | . . . . . High Security . | . . . . . Max Security . | . . . . . Peak Influence 164 | 5 . . 33 164 Initial 33 | . . . 33 . Average 38 | . . . 12 48 Influence Increases 565 | 5 . 110 . 450 Destroy 0b10 Robot/C 340 | . . 20 . 320 Destroy 0b10 Robot/NC 40 | 5 . . . 35 Destroy Leader 80 | . . . . 80 Lose Combat Pursuer 105 | . . 90 . 15 Influence Decreases 454 | 5 . 40 70 339 Entered New Map 37 | . . . 37 . Time Decay 397 | 5 . 40 33 319 Lost Part 20 | . . . . 20 Squads Dispatched 14 | . 1 . . 13 Investigation . | . . . . . Extermination 4 | . . . . 4 Reinforcement 4 | . 1 . . 3 Assault . | . . . . . Garrison 6 | . . . . 6 Intercept . | . . . . . Searches Triggered . | . . . . . Construction Impeded 1 | . . . . 1 Haulers Reinforced 1 | . . . . 1 Active Scanning Responses . | . . . . . Cargo Convoy Interrupts . | . . . . . Stealth | -11 -10 -10 -9 -7 --------- Run | Yrd Mat Sub Rec Fac Distress Signals 1 | . . . . 1 Communications Jammed . | . . . . . Distress Signals . | . . . . . Times Spotted 35 | . 1 8 . 26 Peak Tracking Total 5 | . 1 2 . 5 Tactical Retreats 3 | . . 2 . 1 Traps | -11 -10 -10 -9 -7 ------- Run | Yrd Mat Sub Rec Fac Traps Triggered . | . . . . . Indirectly . | . . . . . Trap Hack Attempts . | . . . . . Triggered . | . . . . . Disarmed . | . . . . . Reprogrammed . | . . . . . Reused . | . . . . . Traps Extracted . | . . . . . Installed . | . . . . . Triggered . | . . . . . Machines | -11 -10 -10 -9 -7 ---------- Run | Yrd Mat Sub Rec Fac Machines Disabled 2 | . . 2 . . Max in Single Turn 2 | . . 2 . . Machines Repaired . | . . . . . Machines Dismantled . | . . . . . Machines Sabotaged . | . . . . . Overloaded Fab Kills . | . . . . . Hacking | -11 -10 -10 -9 -7 --------- Run | Yrd Mat Sub Rec Fac Machines Accessed . | . . . . . Terminals . | . . . . . Fabricators . | . . . . . Repair Stations . | . . . . . Recycling Units . | . . . . . Scanalyzers . | . . . . . Garrison Access . | . . . . . Total Hacks . | . . . . . Successful . | . . . . . Failed . | . . . . . Catastrophic . | . . . . . Database Lockouts . | . . . . . Manual . | . . . . . Terminals . | . . . . . Fabricators . | . . . . . Repair Stations . | . . . . . Recycling Units . | . . . . . Scanalyzers . | . . . . . Garrison Access . | . . . . . Terminal Hacks . | . . . . . Fabricator Hacks . | . . . . . Repair Station Hacks . | . . . . . Recycling Unit Hacks . | . . . . . Scanalyzer . | . . . . . Garrison Access Hacks . | . . . . . Unauthorized Hacks . | . . . . . Terminals . | . . . . . Fabricators . | . . . . . Repair Stations . | . . . . . Recycling Units . | . . . . . Scanalyzers . | . . . . . Garrison Access . | . . . . . Data Cores Recovered . | . . . . . Used . | . . . . . Hacking Detections . | . . . . . Full Trace Events . | . . . . . Feedback Events . | . . . . . Feedback Blocked . | . . . . . Robot Schematics Acquired . | . . . . . Robots Built . | . . . . . Authchips . | . . . . . Time . | . . . . . Total Robot Build Rating . | . . . . . Part Schematics Acquired . | . . . . . Parts Built . | . . . . . Authchips . | . . . . . Time . | . . . . . Total Part Build Rating . | . . . . . Part Studies Acquired . | . . . . . Parts Repaired . | . . . . . Time . | . . . . . Parts Recycled . | . . . . . Recycled Matter . | . . . . . Retrieved Matter . | . . . . . Retrieved Components . | . . . . . Parts Scanalyzed . | . . . . . Part Schematics Acquired . | . . . . . Parts Damaged . | . . . . . Bothacking | -11 -10 -10 -9 -7 ------------ Run | Yrd Mat Sub Rec Fac Used RIF Installer . | . . . . . Robots Hacked . | . . . . . Non-combat . | . . . . . Combat . | . . . . . Robot Hacks Applied . | . . . . . Relay Couplers Released . | . . . . . Fabnet Peak Effective % . | . . . . . Robots Rewired . | . . . . . Allies Hacked . | . . . . . Hacks Repelled . | . . . . . Allies | -11 -10 -10 -9 -7 -------- Run | Yrd Mat Sub Rec Fac Total Allies . | . . . . . Largest Group . | . . . . . Highest-Rated Group . | . . . . . Highest-Rated Ally . | . . . . . Total Orders . | . . . . . Ally Attacks . | . . . . . Total Damage . | . . . . . Kills . | . . . . . Allies Corrupted . | . . . . . Allies Melted . | . . . . . Intel | -11 -10 -10 -9 -7 ------- Run | Yrd Mat Sub Rec Fac Active Infowar (turns) 1348 | 12 134 301 113 788 Terrain 791 | 4 . . . 787 Seismic 877 | 8 134 301 113 321 Robot Analysis Total . | . . . . . Derelict Logs Recovered . | . . . . . Drone Launches . | . . . . . Drone Recoveries . | . . . . . Exploration | -11 -10 -10 -9 -7 ------------- Run | Yrd Mat Sub Rec Fac Turns Passed 1857 | 81 134 301 113 1228 Spaces Moved 1263 | 62 120 238 85 758 Core 3 | 3 . . . . Treads . | . . . . . Legs . | . . . . . Wheels 1190 | 59 120 238 85 688 Hover 70 | . . . . 70 Flight . | . . . . . Fastest Speed 50 | 50 90 90 110 56 Average Speed 111 | 88 90 100 128 118 Slowest Speed 170 | 100 90 110 130 170 Overloaded Moves . | . . . . . Propulsion Burnouts . | . . . . . Robots Hopped . | . . . . . Potential Cave-ins . | . . . . . Cave-ins Triggered . | . . . . . Exploration Rate (%) 16 | 4 29 15 19 14 Regions Visited 4 Branch Regions 2 Pre-discovered Areas . | . . . . . Known Exits Taken . | . . . . . Unknown Exits Taken 4 | 1 1 1 1 . Scrap Searched . | . . . . . Spaces Dug . | . . . . . Terrain Destroyed . | . . . . . Melee . | . . . . . Projectile . | . . . . . AOE . | . . . . . Terrain Rammed . | . . . . . Walls Destroyed . | . . . . . Machines Disabled . | . . . . . Actions | -11 -10 -10 -9 -7 --------- Run | Yrd Mat Sub Rec Fac Total 1560 | 79 139 282 89 971 Wait 121 | . 17 23 3 78 Move 1259 | 61 119 237 84 758 Hop . | . . . . . Pick Up 41 | 8 . 4 . 29 Fast Attach 11 | 7 . . . 4 Attach 11 | . . . . 11 Detach 4 | . . . . 4 Swap 17 | 1 . 2 1 13 Drop 20 | . . 6 1 13 Fire 73 | 2 3 10 . 58 Melee . | . . . . . Ram 3 | . . . . 3 Kick . | . . . . . Crush . | . . . . . Escape Stasis . | . . . . . Rewire . | . . . . . Trap . | . . . . . Miscellaneous . | . . . . . Route ------- -11/Scrapyard -10/Materials (discovered 2 exits: [*Min] / [*Sub]) -10/Subcaves (discovered 2 exits: [*Rec] / [*Scr]) -9/Recycling -7/Factory History --------- Turn | Location | Event 9 | -11/Scrapyard | Discovered new exit (range 15) 82 | -11/Scrapyard | Entered Materials 83 | -10/Materials | Met a group of wandering Federalists 147 | -10/Materials | Discovered new exit (range 14) 207 | -10/Materials | Discovered new exit (range 9) 216 | -10/Materials | Entered Subcaves 216 | -10/Subcaves | Accompanied by 2 allies 217 | -10/Subcaves | Continued accompanying wandering Federalists (4) 260 | -10/Subcaves | A swath of the cavern ceiling suddenly collapsed 304 | -10/Subcaves | Build established: Mutant 462 | -10/Subcaves | Discovered new exit (range 11) 486 | -10/Subcaves | Wandering Federalist uncovered a shortcut to Scraptown 505 | -10/Subcaves | Lost 3 allies 517 | -10/Subcaves | Entered Recycling 518 | -9/Recycling | Met a Zionite searching for Scraptown 617 | -9/Recycling | Discovered new exit (range 5) 630 | -9/Recycling | Entered Factory 630 | -7/Factory | Evolved 6 slots: Propulsion x2, Utility x4 924 | -7/Factory | Build established: Scavenger-Mutant 1070 | -7/Factory | Garrison activated, responded to threat 1530 | -7/Factory | Garrison activated, responded to threat 1858 | -7/Factory | Self-destructed Last Messages --------------- 01814_ K-01 Serf collects debris. 01814_ Dropped Med. Reactive Plating. 01816_ Acquired Lgt. Ion Engine. 01817_ K-01 Serf collects debris. 01820_ System corrupted: FCS attempts to trigger Imp. Spread Laser. 01820_ System corrupted: Imp. Spread Laser misfires. 01821_ K-01 Serf collects debris. 01822_ Acquired Insulated Plating. 01823_ Dropped Imp. EM Pulse Cannon. 01825_ K-01 Serf collects debris. 01830_ Acquired Remote Datajack. 01832_ K-01 Serf collects debris. 01840_ System corrupted: Matter fused (-5). 01845_ ALERT: Potential suspicious activity detected, Programmers report to Factory Zone 6X. 01845_ Slug penetrates Wall. 01857_ Gravmag System destroyed. Map ----- +----------------------------------------------------+ | ?????????????????????????????????????????????????? | | ?????????????????????????????????????????????????? | | ?????????????????????????????????????????????????? | | ?????????????????????????????????????????????????? | | ?????????????????????????????????????????????????? | | ?????????????????????????????????????????????????? | | ?????????????????????????????????????????????????? | | ?????????????????????????????????????????????????? | | ?????????????????????????????????????????????????? | | ???????????????????????? ?????????????????????? | | ?????????????????????? ?????????????????????? | | ??????????????????? #????????????????????? | | ?????????????????? s #????????????????????? | | ?????????????????? #???????????? "??????? | | ??????????????????? #??????????? ""?????? | | ??????????????????? s #??????????? ?????? | | ????????????????????# #?????????? ""?????? | | ????????????????????# s ######+#### """????? | | ????????????????????# """????? | | ???????????????????## a ?????? | | ???????????????????# ""?????? | | ???????????????????#T """ ???? | | ????????????????????# """ ""?? | | ????????????????????# ? | | ????????????????????# ? | | ???????????????????######@####### ####### | | ???????????????????# # # ! | | ???????????????????# # # !] = | | ???????????????????# """" """" # #=*!= ! | | ???????????????????# """" """" # # %!!]= | | ???????????????????# """" """" # +%!!!=* | | ???????????????????# """" """" # #=!!!=[ | | ???????????????????# """" """?? # #![]=! | | ????????????????????????" ""????# # [%! | | ???????????????????????? ????########## # == | | ???????????????????????? ?????????????# # | | ???????????????????????? ?????????????# # | | ???????????????????????? ??????????????# # | | ????????????????????????###???????????#### ####### | | ??????????????????????????????????????# ^ | | ??????????????????????????????????????# ^ | | ??????????????????????????????????????# | | ??????????????????????????????????????# ^ | | ??????????????????????????????????????# ^ | | ??????????????????????????????????????############ | | ?????????????????????????????????????????????????? | | ?????????????????????????????????????????????????? | | | | | | | +----------------------------------------------------+ Best States ------------- Heat Dissipation 34 Coolant Potential 50 Energy Generation 15 Energy Capacity 250 Matter Stores 300 Matter Capacity 300 Sight Range 16 Terrain Scan Range 16 Terrain Scan Density 110 Armor Coverage 375 Resistance: KI 30 Evasion (%) 53 Targeting Accuracy 8 Recoil Reduction 2 Offensive Hacking 10 Item Schematics ----------------- None Robot Schematics ------------------ None Fabricated ------------ Nothing Repaired ---------- Nothing Studied --------- None Alien Tech Used ----------------- None Achievements -------------- Omniscient Cartographer Strength In Numbers Challenges ------------ None Game ------ Seed PowerArcsightStrikerail Manual? 0 Play Time 00:28:24 Cumulative 44.2 hours Start 2026.01.05 @ 18:43:28 End 2026.01.05 @ 19:10:26 Sessions 3 Manual Loads 0 Difficulty Rogue Special Mode None Game No. 24 Rogue 24 Adventurer 0 Explorer 0 Win Type - Total 0 Types 0/0/0/0/0/0/0/0/0/0 Lore% 10 Gallery% 21 Achievement% 17 Wizard Run 0 Options --------- Layout 1 ASCII 0 Keyboard 0 Movement Arrows Keybinds 0 Fullscreen 1 Font 24/Smallcaps Map View 50x35 Zoom Use 0% Tactical HUD 1 Map Filters NONE Filters NONE Steam 1 RUN: c983244b-63ce-4f67-ab22-20038712f49a